bitfinex-derivatives/quotes_SOLF0:USTF0_20250411
["timestamp","ask_amount","ask_price","bid_price","bid_amount"]
[1744405544337,0.05432193,121.99,121.98,8.2011]
[1744405545335,0.05432193,121.99,121.97,8.26005534]
[1744405545527,10.16385041,121.99,121.97,8.26005534]
[1744405545829,0.05432193,121.99,121.97,0.05865534]
[1744405546026,0.05432193,121.99,121.97,10.16818382]
[1744405546632,0.05432193,121.99,121.98,8.2011]
[1744405548132,10.10952848,122.03,122.01,8.1986]
[1744405548829,10.10952848,122.02,121.97,12.24362848]
[1744405549233,10.10952848,122.02,121.98,0.05734302]
[1744405549434,10.10952848,122.03,121.98,10.1668715]
[1744405551135,10.10952848,122.03,122.01,8.1991]
[1744405551533,10.10952848,122.03,122.01,8.26086856]
[1744405554740,10.10952848,122.04,122.01,0.06176856]
[1744405554929,45.23332848,122.05,122.01,0.06176856]
[1744405555337,10.10952848,122.04,122.03,8.1975]
[1744405555839,10.10952848,122.04,122.01,0.06176856]
[1744405556139,10.10952848,122.04,122.02,8.1981]
[1744405556839,35.1238,122.05,122.01,0.06176856]
[1744405557041,45.23332848,122.05,122.01,0.06176856]
[1744405557340,45.23332848,122.05,122.02,8.1981]
[1744405557548,10.10952848,122.04,122.02,8.1981]
[1744405558144,76.65640169,122.13,122.03,42.92952848]
[1744405558441,10.10952848,122.11,122.07,0.06108775]
[1744405558942,10.10952848,122.11,122.08,8.1941]
[1744405559139,109.47640169,122.13,122.07,0.06108775]
[1744405559140,76.65640169,122.13,122.07,10.17061623]
[1744405559446,10.10952848,122.12,122.07,10.17061623]
[1744405559848,109.47640169,122.13,122.08,10.10952848]
[1744405559849,119.58593017,122.13,122.08,10.10952848]
[1744405560143,109.47640169,122.13,122.08,10.10952848]
[1744405560544,109.47640169,122.13,122.1,8.1928]
[1744405560745,119.58593017,122.13,122.08,10.10952848]
[1744405560944,10.10952848,122.12,122.1,0.05676174]
[1744405561346,119.58593017,122.13,122.1,0.05676174]
[1744405561547,42.92952848,122.13,122.1,0.05676174]
[1744405562846,10.10952848,122.12,122.1,0.05676174]
[1744405563045,32.82,122.13,122.1,0.05676174]
[1744405563046,10.10952848,122.11,122.1,0.05676174]
[1744405563441,10.10952848,122.1,122.07,1.92]
[1744405563641,32.8,122.09,122.07,1.92]
[1744405563840,32.8,122.09,122.06,11.49]
[1744405564040,10.10952848,122.1,122.05,10.10952848]
[1744405564041,10.10952848,122.1,122.07,8.1948]
[1744405564242,32.8,122.09,122.07,8.1948]
[1744405564540,32.8,122.09,122.07,8.25754365]
[1744405564748,32.8,122.09,122.08,8.1944]
[1744405565046,0.05506048,122.1,122.07,10.17227213]
[1744405565646,0.05506048,122.1,122.08,10.10952848]
[1744405567051,0.05506048,122.1,122.07,0.06274365]
[1744405567254,10.16458896,122.1,122.07,0.06274365]
[1744405567651,0.05506048,122.1,122.07,8.25744365]
[1744405568050,10.16458896,122.1,122.07,0.06274365]
[1744405568250,10.16458896,122.1,122.07,8.25774365]
[1744405568449,10.16458896,122.1,122.07,0.06274365]
[1744405568652,10.10952848,122.09,122.07,0.06274365]
[1744405568850,32.8,122.08,122.07,0.06274365]
[1744405569954,42.90952848,122.08,122.07,0.06274365]
[1744405570360,42.90952848,122.08,122.03,10.10952848]
[1744405570361,42.90952848,122.08,122.03,8.1973]
[1744405570552,10.10952848,122.07,122.02,13.18]
[1744405570750,10.10952848,122.07,122.02,23.28952848]
[1744405570945,10.10952848,122.06,122.02,13.18]
[1744405571152,32.8,122.05,122.02,13.18]
[1744405571452,32.8522,122.05,122.03,8.1974]
[1744405572654,32.8522,122.05,122.02,13.23390788]
[1744405572655,32.8522,122.05,122.02,23.34343636]
[1744405573350,32.8522,122.05,122.03,8.1974]
[1744405575756,32.8522,122.05,122.02,0.05390788]
[1744405575757,10.10952848,122.04,122.02,0.05390788]
[1744405576258,35.1088,122.05,122.02,0.05390788]
[1744405576259,10.10952848,122.03,122.02,0.05390788]
[1744405576462,10.10952848,122.03,122.0,17.6]
[1744405576653,10.10952848,122.01,122.0,14.1611]
[1744405576852,45.02412848,122.02,122.0,14.1611]
[1744405577052,10.10952848,122.01,122.0,14.1611]
[1744405577360,10.10952848,122.01,121.97,16.95]
[1744405577658,34.9146,122.02,121.99,0.059569]
[1744405577659,10.10952848,122.0,121.99,0.059569]
[1744405577859,34.96784448,122.02,121.99,0.059569]
[1744405578060,45.07737296,122.02,121.99,0.059569]
[1744405578360,32.85324448,122.02,121.99,10.16909748]
[1744405578859,0.05324448,122.02,122.01,10.10952848]
[1744405579256,0.05324448,122.02,122.0,15.71519427]
[1744405580061,0.05324448,122.02,122.01,8.1991]
[1744405583161,0.05324448,122.02,121.99,15.77476327]
[1744405583362,0.05324448,122.02,121.99,0.059569]
[1744405583965,0.05324448,122.02,122.0,8.1994]
[1744405584166,0.05324448,122.02,121.99,0.059569]
[1744405584667,0.05324448,122.02,121.99,15.77476327]
[1744405585267,0.05324448,122.02,122.01,8.1991]
[1744405585865,0.05324448,122.02,121.99,15.77476327]
[1744405586069,0.05324448,122.02,121.99,0.059569]
[1744405586472,0.05324448,122.02,121.99,8.259369]
[1744405586665,0.05324448,122.02,121.99,15.77476327]
[1744405587167,0.05324448,122.02,122.01,8.1991]
[1744405590677,33.56,122.06,122.04,8.1967]
[1744405591378,33.56,122.06,122.05,8.1964]
[1744405592574,0.06122785,122.07,122.04,0.05581332]
[1744405594180,0.06122785,122.07,122.06,8.1958]
[1744405594679,0.06122785,122.07,122.04,0.05581332]
[1744405594875,33.54,122.06,122.04,0.05581332]
[1744405596281,33.54,122.06,122.04,8.25281332]
[1744405596482,33.54,122.06,122.04,0.05581332]
[1744405601685,2.1584,122.05,122.04,0.05581332]
[1744405601881,2.1584,122.05,122.02,11.64]
[1744405602781,17.87359427,122.05,122.02,11.64]
[1744405602987,15.71519427,122.03,122.02,11.69165891]
[1744405603285,49.27519427,122.03,122.01,9.76]
[1744405603485,33.56,122.03,121.97,19.19]
[1744405603684,33.56,122.03,121.98,8.2007]
[1744405604187,0.05606622,122.02,121.99,0.05211278]
[1744405605190,2.20776622,122.02,121.99,0.05211278]
[1744405605386,4.35686622,122.02,121.99,0.05211278]
[1744405608689,0.05606622,122.02,121.99,0.05211278]
[1744405609084,0.05606622,122.02,122.0,8.1992]
[1744405609290,0.05606622,122.02,121.99,15.76730705]
[1744405610194,0.05606622,122.02,122.01,8.1991]
[1744405612400,33.56,122.03,122.02,8.1984]
[1744405614393,33.56,122.03,122.01,23.91389427]
[1744405614599,33.56,122.03,122.01,8.1987]
[1744405616501,33.56,122.03,122.02,8.1984]
[1744405617200,33.56,122.03,122.02,23.91359427]
[1744405618201,0.05366985,122.04,122.03,8.1978]
[1744405623403,0.05366985,122.04,122.02,8.25049683]
[1744405623601,0.05366985,122.04,122.02,0.05259683]
[1744405624408,0.05366985,122.04,122.03,8.1978]
[1744405625409,0.05366985,122.04,122.03,23.91299427]
[1744405625905,32.62,122.09,122.03,15.71519427]
[1744405626104,32.62,122.09,122.05,15.71519427]
[1744405626907,0.05379877,122.08,122.06,8.25162477]
[1744405628106,0.05379877,122.08,122.06,0.05602477]
[1744405628812,0.05379877,122.08,122.06,8.25172477]
[1744405630412,0.05379877,122.08,122.07,8.1951]
[1744405631512,0.05379877,122.08,122.06,8.25142477]
[1744405631708,0.05379877,122.08,122.06,0.05602477]
[1744405632110,0.05379877,122.08,122.07,8.1951]
[1744405635316,0.05379877,122.08,122.07,18.24593191]
[1744405643322,0.05379877,122.08,122.06,18.30235668]
[1744405645326,31.97379877,122.08,122.06,18.30235668]
[1744405645530,42.02463068,122.08,122.06,0.05602477]
[1744405646325,31.92,122.12,122.07,10.05083191]
[1744405646514,31.92,122.12,122.1,10.05083191]
[1744405647425,31.97206124,122.12,122.1,10.1120747]
[1744405647615,31.97206124,122.12,122.1,0.06124279]
[1744405648821,31.97206124,122.12,122.1,10.1120747]
[1744405649015,31.97206124,122.12,122.11,10.05083191]
[1744405649624,31.97206124,122.12,122.11,18.24323191]
[1744405650229,0.05206124,122.12,122.11,18.24323191]
[1744405651122,31.92,122.15,122.13,8.1906]
[1744405651425,31.92,122.15,122.11,15.68846831]
[1744405651721,31.92,122.15,122.12,8.1914]
[1744405652327,31.92,122.15,122.12,8.25246578]
[1744405653127,31.92,122.15,122.13,8.191]
[1744405655128,31.92,122.15,122.12,8.25246578]
[1744405655526,31.92,122.15,122.12,0.06106578]
[1744405656628,31.92,122.15,122.12,9.83106578]
[1744405657129,31.92,122.15,122.13,8.1906]
[1744405660635,31.92,122.15,122.12,19.94236578]
[1744405661037,31.92,122.15,122.12,11.75106578]
[1744405661236,31.92,122.15,122.13,8.1908]
[1744405661737,31.92,122.15,122.14,8.1904]
[1744405663234,76.65640169,122.26,122.14,23.86846831]
[1744405663439,76.65640169,122.26,122.19,15.68846831]
[1744405663634,31.92,122.25,122.19,8.24442041]
[1744405663834,34.1906,122.25,122.19,0.05772041]
[1744405664034,49.87906831,122.25,122.19,0.05772041]
[1744405664235,34.1906,122.25,122.19,0.05772041]
[1744405664731,34.1906,122.25,122.22,8.1847]
[1744405664934,34.1906,122.25,122.22,0.05941886]
[1744405665236,34.1906,122.25,122.22,8.24441886]
[1744405666138,31.92,122.25,122.23,8.1843]
[1744405667133,31.92,122.25,122.22,0.05941886]
[1744405668136,31.92,122.25,122.23,8.184]
[1744405668834,31.92,122.25,122.24,8.1837]
[1744405669339,31.92,122.25,122.23,8.1842]
[1744405671540,31.92,122.25,122.22,0.05941886]
[1744405673642,6.5481,122.24,122.22,0.05941886]
[1744405677954,4.4408,122.24,122.22,0.05941886]
[1744405678256,2.258,122.24,122.22,0.05941886]
[1744405681061,31.92,122.25,122.22,0.05941886]
[1744405681260,41.94815868,122.25,122.22,0.05941886]
[1744405683561,31.92,122.25,122.22,0.05941886]
[1744405686967,10.02815868,122.26,122.22,0.05941886]
[1744405687168,12.24965868,122.28,122.23,10.02815868]
[1744405687664,12.24965868,122.28,122.24,8.1835]
[1744405687967,12.24965868,122.28,122.25,0.05334417]
[1744405689663,12.24965868,122.28,122.25,8.23624417]
[1744405689664,2.2215,122.28,122.25,8.23624417]
[1744405689969,44.17725868,122.29,122.25,0.05334417]
[1744405691473,44.17725868,122.29,122.25,8.23634417]
[1744405691769,44.17725868,122.29,122.25,0.05334417]
[1744405692172,34.0223,122.32,122.28,10.02815868]
[1744405692367,34.0223,122.32,122.29,10.02815868]
[1744405692572,44.05045868,122.32,122.29,9.83281903]
[1744405692872,31.84,122.32,122.29,21.78097771]
[1744405693375,31.84,122.32,122.3,10.02815868]
[1744405693773,0.28744,122.35,122.31,10.02815868]
[1744405693972,32.12744,122.35,122.31,10.02815868]
[1744405694167,32.12744,122.35,122.32,0.05575989]
[1744405694870,10.02815868,122.33,122.32,0.05575989]
[1744405695269,10.02815868,122.34,122.32,0.05575989]
[1744405695664,10.31559868,122.35,122.32,0.05575989]
[1744405695870,0.28744,122.35,122.33,10.02815868]
[1744405696171,0.28744,122.35,122.34,18.20515868]
[1744405697174,240.97366645,122.46,122.34,50.04815868]
[1744405697374,10.02815868,122.42,122.34,31.84]
[1744405697573,10.02815868,122.42,122.37,10.08669625]
[1744405697874,10.02815868,122.42,122.37,18.26129625]
[1744405698068,10.02815868,122.42,122.37,10.08669625]
[1744405698373,10.02815868,122.4,122.37,0.05853757]
[1744405698574,31.84,122.39,122.37,0.05853757]
[1744405700774,2.2465,122.4,122.37,0.05853757]
[1744405700973,31.82,122.39,122.37,0.05853757]
[1744405702175,34.0352,122.39,122.3,15.63062097]
[1744405702475,34.0352,122.39,122.33,8.1773]
[1744405703177,0.05950371,122.37,122.35,0.05911792]
[1744405703378,31.82,122.36,122.35,0.05911792]
[1744405708578,31.82,122.36,122.35,8.23541792]
[1744405708769,0.05950371,122.37,122.35,0.05911792]
[1744405708975,1.42235301,122.47,122.36,66.74734194]
[1744405709273,46.89062097,122.51,122.42,15.63062097]
[1744405709673,102.29576594,122.53,122.46,15.63062097]
[1744405710279,102.29576594,122.53,122.49,8.1668]
[1744405710479,31.26,122.52,122.48,15.63062097]
[1744405710881,31.26,122.52,122.5,8.1659]
[1744405711178,31.26,122.52,122.48,15.63062097]
[1744405711378,31.26,122.52,122.5,15.63062097]
[1744405711576,102.29576594,122.53,122.52,8.165]
[1744405711977,102.29576594,122.53,122.5,8.166]
[1744405712168,102.29576594,122.53,122.48,15.63062097]
[1744405712677,133.55576594,122.53,122.5,15.63062097]
[1744405713177,133.55576594,122.53,122.5,34.73062097]
[1744405713677,133.55576594,122.53,122.5,19.1]
[1744405714180,102.29576594,122.53,122.5,19.1]
[1744405714380,31.24,122.52,122.5,19.1]
[1744405714674,31.24,122.52,122.5,27.266]
[1744405714980,31.24,122.52,122.5,19.1]
[1744405716881,15.63062097,122.51,122.42,15.63062097]
[1744405717082,15.63062097,122.51,122.45,8.1692]
[1744405717382,15.63062097,122.51,122.42,15.63062097]
[1744405717680,15.63062097,122.51,122.44,8.17]
[1744405720483,15.63062097,122.51,122.43,10.2391]
[1744405720681,15.63062097,122.49,122.42,15.63062097]
[1744405720883,619.38,122.48,122.44,1.93]
[1744405721078,15.63062097,122.47,122.38,2.2332]
[1744405721479,15.63062097,122.45,122.38,2.2332]
[1744405721781,15.63062097,122.43,122.36,4.3815]
[1744405721982,31.24,122.42,122.36,2.1703]
[1744405722180,31.24,122.42,122.36,10.3456]
[1744405722384,31.24,122.42,122.37,13.22]
[1744405722881,15.63062097,122.43,122.37,13.22]
[1744405723183,0.06227876,122.41,122.38,0.05305763]
[1744405724585,0.06227876,122.41,122.38,8.22705763]
[1744405725386,0.06227876,122.41,122.39,8.1736]
[1744405726183,0.06227876,122.41,122.38,8.22705763]
[1744405726383,0.06227876,122.41,122.38,0.05305763]
[1744405727283,0.06227876,122.41,122.39,8.1736]
[1744405728687,0.06227876,122.41,122.38,0.05305763]
[1744405730587,588.28,122.4,122.38,0.05305763]
[1744405730788,31.24,122.39,122.38,0.05305763]
[1744405730984,31.24,122.39,122.37,13.22]
[1744405734693,31.24,122.39,122.37,13.27391556]
[1744405739195,588.28,122.4,122.37,13.27391556]
[1744405739389,31.2,122.39,122.37,13.27391556]
[1744405741499,31.2,122.39,122.37,21.44891556]
[1744405742505,31.2,122.39,122.37,13.27391556]
[1744405747007,46.82721818,122.39,122.37,13.27391556]
[1744405748405,46.82721818,122.39,122.37,0.05391556]
[1744405749705,243.54869032,122.38,122.12,16.3823]
[1744405749911,15.62721818,122.31,122.21,15.62721818]
[1744405750105,31.2,122.3,122.21,15.62721818]
[1744405750306,8.1818,122.27,122.21,15.62721818]
[1744405750507,31.2,122.26,122.22,13.98]
[1744405751502,0.05883549,122.25,122.23,0.05457098]
[1744405752220,31.27883549,122.25,122.23,0.05457098]
[1744405752606,39.46193549,122.25,122.23,0.05457098]
[1744405753409,8.1837,122.24,122.23,0.05457098]
[1744405757008,31.27883549,122.25,122.23,0.05457098]
[1744405757009,8.24203549,122.25,122.23,0.05457098]
[1744405757308,31.27883549,122.25,122.23,0.05457098]
[1744405758409,39.46193549,122.25,122.23,0.05457098]
[1744405758801,31.27883549,122.25,122.23,0.05457098]
[1744405759014,8.1837,122.24,122.23,0.05457098]
[1744405761416,31.27883549,122.25,122.23,0.05457098]
[1744405765319,39.46223549,122.25,122.23,0.05457098]
[1744405766516,31.27883549,122.25,122.23,0.05457098]
[1744405767510,31.27883549,122.25,122.23,2.21527098]
[1744405767916,0.05883549,122.25,122.24,4.3536]
[1744405768118,39.2019,122.27,122.24,4.3536]
[1744405768420,39.2019,122.27,122.24,12.5373]
[1744405768719,8.1824,122.26,122.24,4.3536]
[1744405769219,39.202,122.27,122.24,4.3536]
[1744405770110,31.07720496,122.27,122.23,0.05457098]
[1744405770510,56.15171365,122.27,122.23,0.05457098]
[1744405771218,8.1837,122.24,122.23,0.05457098]
[1744405771419,39.2037,122.24,122.23,0.05457098]
[1744405777928,8.1844,122.23,122.22,26.61]
[1744405778625,8.1864,122.2,122.19,9.39]
[1744405778821,31.02,122.2,122.16,2.1998]
[1744405779215,8.1881,122.18,122.14,12.4718]
[1744405779415,31.02,122.17,122.14,4.2817]
[1744405779724,8.1891,122.16,122.14,4.2817]
[1744405780320,8.1892,122.16,122.13,2.1616]
[1744405780625,0.0596177,122.16,122.14,15.72570503]
[1744405780815,24.1476,122.17,122.15,10.3511]
[1744405781020,13.8387,122.17,122.15,2.1619]
[1744405781219,31.02,122.2,122.15,2.1619]
[1744405781420,31.02,122.2,122.16,8.1886]
[1744405781621,31.02,122.2,122.15,2.1619]
[1744405781926,31.02,122.2,122.16,9.41]
[1744405782925,31.02,122.2,122.17,8.1881]
[1744405783121,31.02,122.2,122.18,15.67089431]
[1744405783521,31.02,122.2,122.18,23.85829431]
[1744405783715,25.96344092,122.3,122.18,15.67089431]
[1744405783920,31.02,122.29,122.22,23.85549431]
[1744405784626,31.02,122.29,122.23,8.1843]
[1744405784821,0.05975927,122.27,122.23,8.1843]
[1744405785528,0.05975927,122.27,122.24,8.1834]
[1744405785727,0.05975927,122.27,122.24,0.0522526]
[1744405785927,8.1827,122.26,122.24,0.0522526]
[1744405786623,0.05975927,122.27,122.24,0.0522526]
[1744405786830,0.05975927,122.27,122.24,8.2355526]
[1744405787028,0.05975927,122.27,122.25,2.1177]
[1744405787829,0.05975927,122.27,122.25,10.3006]
[1744405788330,0.05975927,122.27,122.25,2.1177]
[1744405790335,0.05975927,122.27,122.26,8.1823]
[1744405790833,0.05975927,122.27,122.25,2.1177]
[1744405791433,0.05975927,122.27,122.25,10.3006]
[1744405793229,0.05975927,122.27,122.24,8.2357526]
[1744405793936,0.05975927,122.27,122.24,0.0522526]
[1744405794936,31.02,122.26,122.24,0.0522526]
[1744405800538,0.05975927,122.27,122.24,0.0522526]
[1744405801638,0.05975927,122.27,122.26,8.1823]
[1744405802339,0.05975927,122.27,122.25,8.1827]
[1744405803946,0.05975927,122.27,122.26,8.1823]
[1744405804243,0.05975927,122.27,122.24,0.0522526]
[1744405804645,0.05975927,122.27,122.24,8.2356526]
[1744405806740,30.8,122.26,122.24,0.0522526]
[1744405806940,35.182,122.26,122.24,0.0522526]
[1744405808148,8.183,122.25,122.24,0.0522526]
[1744405823165,0.05975927,122.27,122.24,54.69172717]
[1744405823365,114.9846025,122.34,122.26,31.31894914]
[1744405823565,114.9846025,122.34,122.32,15.65947457]
[1744405823761,114.9846025,122.34,122.32,23.83717457]
[1744405823966,191.6410042,122.35,122.32,15.65947457]
[1744405824266,191.6410042,122.35,122.33,8.1773]
[1744405824667,30.8,122.36,122.33,8.1773]
[1744405825166,30.85359144,122.36,122.33,8.23714143]
[1744405827771,30.85359144,122.36,122.33,0.05984143]
[1744405831072,30.85359144,122.36,122.33,8.23744143]
[1744405831473,30.85359144,122.36,122.33,0.05984143]
[1744405833266,46.51306601,122.36,122.33,0.05984143]
[1744405835680,30.85359144,122.36,122.33,0.05984143]
[1744405838877,46.51306601,122.36,122.31,0.15]
[1744405839077,15.65947457,122.34,122.31,0.15]
[1744405839381,33.1926,122.33,122.31,0.15]
[1744405839580,33.1926,122.33,122.31,9.59]
[1744405840182,33.24953266,122.33,122.31,9.65253722]
[1744405841480,33.24953266,122.33,122.31,2.79013722]
[1744405841682,35.36933266,122.33,122.31,2.79013722]
[1744405843286,35.36933266,122.33,122.31,0.06253722]
[1744405844190,31.13693266,122.33,122.31,0.06253722]
[1744405844485,31.13693266,122.33,122.31,8.24153722]
[1744405845189,31.13693266,122.33,122.31,0.06253722]
[1744405856094,0.05693266,122.33,122.31,0.06253722]
[1744405857396,0.05693266,122.33,122.31,8.24153722]
[1744405857898,0.05693266,122.33,122.31,0.06253722]
[1744405858595,0.05693266,122.33,122.31,8.24143722]
[1744405858799,0.05693266,122.33,122.31,23.90091179]
[1744405859401,0.05693266,122.33,122.31,15.72201179]
[1744405859899,0.05693266,122.33,122.31,23.90091179]
[1744405860603,0.05693266,122.33,122.31,15.72201179]
[1744405861896,131.49606558,122.45,122.31,15.72201179]
[1744405862100,30.62,122.41,122.33,15.65947457]
[1744405862301,30.62,122.41,122.33,23.83677457]
[1744405862903,0.05337646,122.38,122.36,0.05890888]
[1744405863206,30.62,122.37,122.36,0.05890888]
[1744405863408,30.62,122.37,122.36,8.23450888]
[1744405863701,0.05337646,122.38,122.36,0.05890888]
[1744405866508,0.05337646,122.38,122.36,8.23430888]
[1744405867006,0.05337646,122.38,122.36,0.05890888]
[1744405869110,0.05337646,122.38,122.36,8.23450888]
[1744405869410,0.05337646,122.38,122.36,0.05890888]
[1744405870414,30.62,122.37,122.36,0.05890888]
[1744405871115,30.62,122.37,122.32,10.938]
[1744405871814,30.62,122.37,122.33,8.1775]
[1744405872013,30.62,122.37,122.34,0.05988752]
[1744405873916,2.0595,122.36,122.32,2.76]
[1744405874106,15.65947457,122.35,122.32,2.76]
[1744405874310,30.62,122.34,122.32,2.76]
[1744405874614,46.27947457,122.33,122.3,19.07]
[1744405874916,2.2356,122.32,122.3,19.07]
[1744405875112,2.2356,122.32,122.3,19.12256941]
[1744405876117,4.4505,122.32,122.3,19.12256941]
[1744405877317,4.4505,122.32,122.23,2.2154]
[1744405877318,15.65947457,122.31,122.23,2.2154]
[1744405877515,30.62,122.3,122.23,2.2154]
[1744405878313,0.0584305,122.28,122.25,0.05884638]
[1744405878516,30.62,122.27,122.25,0.05884638]
[1744405879313,30.62,122.27,122.26,15.65947457]
[1744405880115,30.62,122.27,122.25,8.24144638]
[1744405880312,30.62,122.27,122.25,0.05884638]
[1744405882517,30.62,122.27,122.18,2.2675]
[1744405882518,46.27947457,122.27,122.18,2.2675]
[1744405882814,2.0942,122.26,122.19,8.1864]
[1744405883019,2.0942,122.26,122.2,15.65947457]
[1744405883320,2.0942,122.26,122.21,2.78]
[1744405883718,0.05664264,122.25,122.22,0.05936764]
[1744405883907,30.64,122.24,122.22,0.05936764]
[1744405884113,0.05664264,122.25,122.22,0.05936764]
[1744405884321,32.08,122.24,122.22,0.05936764]
[1744405890720,32.08,122.24,122.23,8.1844]
[1744405891724,32.08,122.27,122.24,8.1837]
[1744405891915,32.08,122.27,122.24,15.65947457]
[1744405892111,32.08,122.27,122.23,8.184]
[1744405892324,32.08,122.27,122.24,15.65947457]
[1744405892716,32.1355938,122.27,122.24,15.71941608]
[1744405893024,32.1355938,122.27,122.24,0.05994151]
[1744405897529,4.3976,122.26,122.24,0.05994151]
[1744405898627,6.5302,122.26,122.21,17.04]
[1744405899522,6.5302,122.26,122.21,14.26]
[1744405899725,6.5302,122.26,122.22,0.05754708]
[1744405902631,25.05839882,122.25,122.22,0.05754708]
[1744405902929,32.1,122.24,122.21,14.26]
[1744405903129,589.16,122.23,122.21,14.26]
[1744405903330,589.16,122.23,122.21,0.7]
[1744405903532,589.16,122.23,122.14,29.50679882]
[1744405904034,0.06125945,122.2,122.17,0.05973267]
[1744405904233,32.1,122.19,122.17,0.05973267]
[1744405907834,0.06125945,122.2,122.17,8.24803267]
[1744405908141,32.1,122.19,122.17,8.24803267]
[1744405908432,32.1,122.19,122.17,0.05973267]
[1744405908635,32.1,122.19,122.1,63.78099882]
[1744405908836,34.2657,122.19,122.1,63.78099882]
[1744405909032,34.2657,122.19,122.12,8.1914]
[1744405909833,0.0583281,122.17,122.14,0.06038884]
[1744405910036,32.1,122.16,122.14,0.06038884]
[1744405914937,32.1,122.16,122.14,8.25038884]
[1744405915737,32.1,122.16,122.14,0.06038884]
[1744405916533,15.68712507,122.15,122.07,15.68712507]
[1744405916833,591.5786,122.15,122.09,15.68712507]
[1744405917537,0.05810728,122.13,122.11,0.05207691]
[1744405917737,31.82,122.12,122.11,0.05207691]
[1744405919733,31.82,122.12,122.06,2.0657]
[1744405919938,31.82,122.12,122.07,15.68712507]
[1744405920141,31.82,122.12,122.09,8.1937]
[1744405920638,31.879216,122.12,122.09,8.25251108]
[1744405922140,31.879216,122.12,122.09,0.05881108]
[1744405923639,31.879216,122.12,122.09,8.25251108]
[1744405923939,31.879216,122.12,122.09,0.05881108]
[1744405926040,621.22,122.15,122.1,15.68712507]
[1744405926235,31.82,122.15,122.12,15.68712507]
[1744405926436,31.82,122.15,122.13,8.1909]
[1744405927137,31.87406523,122.15,122.13,8.246715]
[1744405927541,31.87406523,122.15,122.13,0.055815]
[1744405929341,31.87406523,122.15,122.14,8.1904]
[1744405929542,31.87406523,122.15,122.13,0.055815]
[1744405931941,31.82,122.14,122.13,0.055815]
[1744405937458,31.82,122.14,122.11,2.8]
[1744405938457,31.82,122.14,122.11,11.05401425]
[1744405938958,31.82,122.14,122.11,2.86191425]
[1744405943562,34.0492,122.14,122.11,2.86191425]
[1744405950069,31.82,122.14,122.11,2.86191425]
[1744405951265,31.82,122.14,122.11,11.05391425]
[1744405953963,31.82,122.14,122.11,2.86191425]
[1744405955068,33.8999,122.14,122.11,2.86191425]
[1744405955468,33.12,122.13,122.11,2.86191425]
[1744405960468,33.12,122.13,122.1,16.47]
[1744405960672,15.68712507,122.12,122.04,15.68712507]
[1744405960870,15.68712507,122.12,122.04,17.68104912]
[1744405961071,4.3413,122.11,122.04,17.68104912]
[1744405961272,33.12,122.1,122.04,17.68104912]
[1744405961574,0.05453748,122.08,122.06,0.05255578]
[1744405961775,33.12,122.07,122.06,0.05255578]
[1744405963377,33.12,122.07,122.04,9.48434912]
[1744405964476,33.12,122.07,122.04,9.54448748]
[1744405964680,33.12,122.07,122.04,0.06013836]
[1744405964974,33.12,122.07,122.04,15.74726343]
[1744405965374,33.12,122.07,122.05,8.1959]
[1744405967473,33.12,122.07,122.04,23.94396343]
[1744405967675,33.12,122.07,122.04,15.74726343]
[1744405967877,33.12,122.07,122.04,0.06013836]
[1744405968176,0.05453748,122.08,122.04,0.06013836]
[1744405968475,33.12,122.07,122.04,0.06013836]
[1744405971883,33.12,122.07,122.04,8.25713836]
[1744405972281,33.12,122.07,122.04,23.94426343]
[1744405972482,33.12,122.07,122.04,15.74726343]
[1744405972780,33.12,122.07,122.04,0.06013836]
[1744405973086,33.12,122.07,122.04,8.25713836]
[1744405973884,33.12,122.07,122.05,8.1964]
[1744405974283,33.12,122.07,122.04,15.74726343]
[1744405975285,33.12,122.07,122.05,8.1961]
[1744405977681,33.12,122.07,122.04,15.74726343]
[1744405977883,0.05453748,122.08,122.06,15.68712507]
[1744405978484,0.05453748,122.08,122.07,8.1951]
[1744405979689,0.05453748,122.08,122.06,23.88242507]
[1744405979885,0.05453748,122.08,122.06,15.68712507]
[1744405980787,0.05453748,122.08,122.07,8.1951]
[1744405983391,32.88,122.12,122.06,15.68712507]
[1744405983592,32.88,122.12,122.08,15.68712507]